bitfinex/quotes_BTCUSD_20250907
["timestamp","ask_amount","ask_price","bid_price","bid_amount"]
[1757213752728,0.18308996,110740.0,110730.0,0.15024]
[1757213753353,0.18308996,110740.0,110730.0,0.15234]
[1757213753548,0.18308996,110740.0,110730.0,0.15544]
[1757213753797,0.18106996,110740.0,110730.0,0.15544]
[1757213754396,0.18308996,110740.0,110730.0,0.15544]
[1757213755188,0.18106996,110740.0,110730.0,0.15544]
[1757213756384,0.18106996,110740.0,110730.0,0.0052]
[1757213756624,0.18308996,110740.0,110730.0,0.1554]
[1757213757391,0.18308996,110740.0,110720.0,0.009]
[1757213757392,0.18061952,110730.0,110720.0,0.009]
[1757213757606,0.50124569,110730.0,110720.0,0.009]
[1757213757810,0.65346569,110730.0,110720.0,0.009]
[1757213758548,0.50326569,110730.0,110720.0,0.009]
[1757213758752,0.65346569,110730.0,110720.0,0.009]
[1757213759546,0.65312183,110730.0,110720.0,0.009]
[1757213761943,0.65308183,110730.0,110720.0,0.009]
[1757213763879,0.50292183,110730.0,110720.0,0.009]
[1757213764098,0.18063583,110720.0,110710.0,0.19463187]
[1757213764272,0.49793814,110720.0,110710.0,0.19463187]
[1757213764475,0.49793814,110720.0,110710.0,0.37738402]
[1757213766806,0.18063583,110720.0,110710.0,0.37738402]
[1757213767089,0.49793814,110720.0,110710.0,0.37738402]
[1757213769112,0.49792183,110730.0,110710.0,0.37738402]
[1757213769316,0.49792183,110730.0,110720.0,0.003]
[1757213769517,0.49792183,110730.0,110720.0,0.00499]
[1757213769934,0.49994183,110730.0,110720.0,0.00499]
[1757213771735,0.49994183,110730.0,110720.0,0.03603959]
[1757213771936,0.49994183,110730.0,110720.0,0.00499]
[1757213772831,0.49994183,110730.0,110720.0,0.00199]
[1757213773029,0.49994183,110730.0,110710.0,0.64168402]
[1757213773401,0.31730231,110720.0,110710.0,0.64168402]
[1757213773601,0.49792183,110730.0,110710.0,0.64367402]
[1757213773982,0.49792183,110730.0,110710.0,0.64067402]
[1757213774135,0.49792183,110730.0,110720.0,0.003]
[1757213774340,0.49994183,110730.0,110720.0,0.003]
[1757213774699,0.49994183,110730.0,110710.0,0.63868402]
[1757213774899,0.49994183,110730.0,110710.0,0.64168402]
[1757213779017,0.18061952,110730.0,110720.0,0.18262583]
[1757213779138,0.49792183,110730.0,110720.0,0.00499]
[1757213779349,0.49792183,110730.0,110720.0,0.00724794]
[1757213779557,0.49994183,110730.0,110720.0,0.00499]
[1757213779967,0.18063583,110720.0,110710.0,0.58040001]
[1757213780173,0.49995814,110720.0,110710.0,0.30783187]
[1757213780379,0.49995814,110720.0,110710.0,0.64067402]
[1757213780593,0.49995814,110720.0,110710.0,0.64367402]
[1757213781307,0.49793814,110720.0,110710.0,0.64367402]
[1757213783261,0.49995814,110720.0,110710.0,0.64367402]
[1757213785480,0.49793814,110720.0,110710.0,0.64367402]
[1757213787123,0.97044045,110720.0,110710.0,0.04133187]
[1757213787323,0.97044045,110720.0,110700.0,0.49502]
[1757213787324,0.18065215,110710.0,110700.0,0.49502]
[1757213787499,0.50097446,110710.0,110700.0,0.42566]
[1757213787701,0.50299446,110710.0,110700.0,0.42566]
[1757213788161,0.18569215,110710.0,110700.0,0.42566]
[1757213788365,0.50299446,110710.0,110700.0,0.42666]
[1757213789717,0.50299446,110710.0,110700.0,0.46630271]
[1757213790627,0.50299446,110710.0,110700.0,0.45738271]
[1757213791061,0.50299446,110710.0,110700.0,0.19088271]
[1757213792160,0.51216741,110710.0,110700.0,0.19088271]
[1757213792394,0.51216741,110710.0,110700.0,0.04064271]
[1757213792586,0.82946972,110710.0,110700.0,0.001]
[1757213793556,0.51216741,110710.0,110700.0,0.001]
[1757213794561,0.82946972,110710.0,110700.0,0.001]
[1757213795097,0.51216741,110710.0,110700.0,0.001]
[1757213795302,0.66244741,110710.0,110700.0,0.001]
[1757213798803,0.66240741,110710.0,110700.0,0.001]
[1757213801630,0.51216741,110710.0,110700.0,0.001]
[1757213801841,0.66244741,110710.0,110700.0,0.001]
[1757213802476,0.3451451,110710.0,110700.0,0.001]
[1757213802684,0.51216741,110710.0,110700.0,0.001]
[1757213802904,0.66244741,110710.0,110700.0,0.001]
[1757213804127,0.3451451,110710.0,110700.0,0.001]
[1757213804328,0.66244741,110710.0,110700.0,0.001]
[1757213806359,0.51216741,110710.0,110700.0,0.001]
[1757213806600,0.66240741,110710.0,110700.0,0.001]
[1757213818535,0.51216741,110710.0,110700.0,0.001]
[1757213818838,0.65934741,110710.0,110700.0,0.001]
[1757213821495,0.65944027,110710.0,110700.0,0.001]
[1757213821999,0.66260027,110710.0,110700.0,0.001]
[1757213823227,0.51240027,110710.0,110700.0,0.001]
[1757213823467,0.66256027,110710.0,110700.0,0.001]
[1757213823664,0.3420051,110710.0,110700.0,0.001]
[1757213823870,0.65940027,110710.0,110700.0,0.001]
[1757213825593,0.50924027,110710.0,110700.0,0.001]
[1757213825798,0.1898251,110710.0,110700.0,0.00845835]
[1757213826282,0.1918651,110710.0,110700.0,0.00845835]
[1757213826899,0.18269215,110710.0,110700.0,0.00845835]
[1757213827102,0.31943517,110710.0,110700.0,0.00845835]
[1757213827310,0.50008732,110710.0,110700.0,0.00845835]
[1757213827922,0.18269215,110710.0,110700.0,0.00845835]
[1757213828386,0.18065215,110710.0,110700.0,0.00845835]
[1757213829214,0.18278215,110710.0,110700.0,0.00845835]
[1757213831975,0.18278215,110710.0,110700.0,0.00325835]
[1757213832642,0.50017732,110710.0,110700.0,0.00325835]
[1757213833830,0.50310732,110710.0,110700.0,0.001]
[1757213836242,0.18571215,110710.0,110700.0,0.001]
[1757213836454,0.50017732,110710.0,110700.0,0.001]
[1757213838484,0.50017732,110710.0,110700.0,0.00325835]
[1757213841040,0.50017732,110710.0,110700.0,0.001]
[1757213841041,0.50310732,110710.0,110700.0,0.001]
[1757213856163,0.18571215,110710.0,110700.0,0.001]
[1757213856362,0.50310732,110710.0,110700.0,0.001]
[1757213858992,0.53023159,110710.0,110700.0,0.001]
[1757213865301,0.52730159,110710.0,110700.0,0.001]
[1757213867635,0.53036159,110710.0,110700.0,0.001]
[1757213873571,0.21296642,110710.0,110700.0,0.001]
[1757213873769,0.53036159,110710.0,110700.0,0.001]
[1757213874374,0.68072159,110710.0,110700.0,0.001]
[1757213874612,0.02712427,110710.0,110700.0,0.0063]
[1757213874820,0.34018698,110720.0,110700.0,0.18922682]
[1757213875018,0.0271218,110720.0,110710.0,0.18383215]
[1757213875229,0.35815763,110720.0,110710.0,0.18595215]
[1757213875439,0.20775763,110720.0,110710.0,0.18595215]
[1757213875639,0.18063583,110720.0,110710.0,0.18595215]
[1757213875847,0.18063583,110720.0,110710.0,0.21307206]
[1757213876936,0.20773943,110730.0,110720.0,0.18063583]
[1757213877151,0.35813943,110730.0,110720.0,0.18275583]
[1757213877313,0.35813943,110730.0,110720.0,0.18593583]
[1757213877526,0.33101952,110730.0,110720.0,0.21305326]
[1757213880105,0.3400796,110730.0,110720.0,0.21305326]
[1757213880810,0.3400796,110730.0,110720.0,0.03241743]
[1757213881555,0.65732006,110730.0,110720.0,0.03241743]
[1757213881765,0.65931006,110730.0,110720.0,0.03241743]
[1757213883205,0.3420696,110730.0,110720.0,0.03241743]
[1757213883414,0.65732006,110730.0,110720.0,0.03241743]
[1757213885646,0.64825998,110730.0,110720.0,0.21305326]
[1757213886269,0.49785998,110730.0,110720.0,0.21305326]
[1757213886471,0.64841998,110730.0,110720.0,0.21305326]
[1757213890006,0.33117952,110730.0,110720.0,0.21305326]
[1757213891655,0.33117952,110730.0,110720.0,0.25333013]
[1757213893868,0.64841998,110730.0,110720.0,0.25333013]
[1757213896283,0.33117952,110730.0,110720.0,0.25333013]
[1757213898846,0.15056,110730.0,110720.0,0.25333013]
[1757213898994,0.15056,110730.0,110720.0,0.40377013]
[1757213901025,0.69403284,110740.0,110720.0,0.40377013]
[1757213901232,1.03403284,110740.0,110730.0,0.00313]
[1757213901409,1.03403284,110740.0,110730.0,0.00524]
[1757213901831,1.03601284,110740.0,110730.0,0.00524]
[1757213902194,1.03403284,110740.0,110730.0,0.00524]
[1757213902392,0.69403284,110740.0,110730.0,0.18585952]
[1757213902615,0.66691541,110740.0,110730.0,0.18585952]
[1757213902816,0.34064479,110740.0,110730.0,0.18585952]
[1757213903024,0.65788525,110740.0,110730.0,0.21297361]
[1757213908879,0.65986525,110740.0,110730.0,0.03235409]
[1757213909084,0.97710571,110740.0,110730.0,0.02711409]
[1757213909519,0.65986525,110740.0,110730.0,0.03235409]
[1757213913489,0.65986525,110740.0,110730.0,0.02397619]
[1757213913690,0.65986525,110740.0,110730.0,0.02710619]
[1757213914267,0.65788525,110740.0,110730.0,0.02710619]
[1757213916820,0.65986525,110740.0,110730.0,0.02710619]
[1757213917257,0.34262479,110740.0,110730.0,0.02710619]
[1757213917468,0.65986525,110740.0,110730.0,0.02710619]
[1757213917675,0.66004525,110740.0,110730.0,0.02710619]
[1757213918063,0.65788525,110740.0,110730.0,0.02710619]
[1757213918994,0.65788525,110740.0,110730.0,0.00524]
[1757213919624,0.66004525,110740.0,110730.0,0.00524]
[1757213923670,0.66004525,110740.0,110720.0,0.66512678]
[1757213923856,0.66004525,110740.0,110720.0,0.76004277]
[1757213924279,0.66004525,110740.0,110730.0,0.0051]
[1757213924679,0.18061952,110730.0,110720.0,0.33389102]
[1757213924894,0.49785998,110730.0,110720.0,0.66512685]
[1757213925094,0.49785998,110730.0,110720.0,0.67022685]
[1757213925532,0.49785998,110730.0,110720.0,0.48959102]
[1757213926585,0.50001998,110730.0,110720.0,0.33389102]
[1757213926804,0.50314998,110730.0,110720.0,0.30677687]
[1757213927211,0.50314998,110730.0,110720.0,0.2665]
[1757213927657,0.53026739,110730.0,110720.0,0.2665]
[1757213930461,0.18063583,110720.0,110710.0,0.41718]
[1757213930671,0.65071629,110720.0,110710.0,0.41718]
[1757213932640,0.50003629,110720.0,110710.0,0.41818]
[1757213933042,0.82040675,110720.0,110710.0,0.0012]
[1757213933277,0.82040675,110720.0,110710.0,0.001]
[1757213933725,0.53028698,110720.0,110710.0,0.001]
[1757213933976,0.99812744,110720.0,110710.0,0.001]
[1757213935088,0.36364652,110720.0,110710.0,0.001]
[1757213935328,0.68088698,110720.0,110710.0,0.001]
[1757213938918,0.48716794,110720.0,110710.0,0.001]
[1757213939125,0.98504423,110720.0,110710.0,0.001]
[1757213940223,0.83444423,110720.0,110710.0,0.001]
[1757213940397,0.98500423,110720.0,110710.0,0.001]
[1757213940806,0.19996331,110720.0,110710.0,0.001]
[1757213940945,0.98500423,110720.0,110710.0,0.001]
[1757213943099,0.83444423,110720.0,110710.0,0.001]
[1757213943307,0.98500423,110720.0,110710.0,0.001]
[1757213943540,0.66788779,110720.0,110710.0,0.001]
[1757213944973,0.51732779,110720.0,110710.0,0.001]
[1757213945189,0.66788779,110720.0,110710.0,0.001]
[1757213945830,0.66784779,110720.0,110710.0,0.001]
[1757213974091,0.18066847,110700.0,110690.0,0.72003939]
[1757213974335,0.18066847,110700.0,110690.0,0.72200939]
[1757213975284,0.18071511,110700.0,110690.0,0.72200939]
[1757213977224,0.19000319,110700.0,110690.0,0.7161012]
[1757213977665,0.18071511,110700.0,110690.0,0.7161012]
[1757213980211,0.18963254,110700.0,110690.0,0.7161012]
[1757213984197,0.18963254,110700.0,110690.0,0.6467412]
[1757213985137,0.18071511,110700.0,110690.0,0.6467412]
[1757213987320,0.18955552,110700.0,110690.0,0.6467412]
[1757213989589,0.00888705,110700.0,110690.0,0.6467412]
[1757213990217,4.664e-05,110700.0,110690.0,0.6467412]
[1757214000600,4.664e-05,110700.0,110690.0,0.4963012]
[1757214000791,4.664e-05,110700.0,110690.0,0.6465812]
[1757214001731,4.664e-05,110700.0,110690.0,0.76953395]
[1757214002803,4.664e-05,110700.0,110690.0,0.79665496]
[1757214006768,4.664e-05,110700.0,110690.0,0.79661496]
[1757214009724,4.664e-05,110700.0,110690.0,0.82296496]
[1757214012369,4.664e-05,110700.0,110690.0,1.16296496]
[1757214013242,4.664e-05,110700.0,110690.0,1.2441462]
[1757214015146,4.664e-05,110700.0,110690.0,1.2440662]
[1757214018091,4.664e-05,110700.0,110690.0,1.0939062]
[1757214018365,4.664e-05,110700.0,110690.0,1.2440662]
[1757214018572,4.664e-05,110700.0,110690.0,1.2530662]
[1757214020595,4.664e-05,110700.0,110690.0,1.1029062]
[1757214020796,4.664e-05,110700.0,110690.0,1.2531062]
[1757214021264,0.10432556,110730.0,110720.0,0.18063583]
[1757214021397,0.10432556,110730.0,110720.0,0.33292583]
[1757214021622,0.10432556,110730.0,110720.0,0.18570583]
[1757214021822,0.10432556,110730.0,110720.0,0.33590583]
[1757214022224,0.10432556,110730.0,110720.0,0.18570583]
[1757214022421,0.84723794,110740.0,110720.0,0.33590583]
[1757214022821,0.84723794,110740.0,110720.0,0.18272583]
[1757214023031,0.84723794,110740.0,110720.0,0.33300583]
[1757214023244,0.84723794,110740.0,110720.0,0.33598583]
[1757214023467,0.84723794,110740.0,110730.0,0.00298]
[1757214023893,1.1645258,110740.0,110730.0,0.00298]
[1757214025554,0.8245258,110740.0,110730.0,0.00298]
[1757214026136,0.18061952,110730.0,110720.0,0.37440465]
[1757214026342,0.49790738,110730.0,110720.0,0.37440465]
[1757214026576,0.49790738,110730.0,110720.0,0.37649465]
[1757214028150,0.49790738,110730.0,110720.0,0.22625465]
[1757214028358,0.49790738,110730.0,110720.0,0.19593882]
[1757214028572,0.18063583,110720.0,110710.0,0.29361591]
[1757214028780,0.49792369,110720.0,110710.0,0.26948]
[1757214028989,0.81521155,110720.0,110710.0,0.2665]
[1757214029444,0.49792369,110720.0,110710.0,0.2665]
[1757214030079,0.49774301,110720.0,110710.0,0.2665]
[1757214030290,0.49774301,110720.0,110710.0,0.2651]
[1757214032932,0.81503087,110720.0,110710.0,0.2651]
[1757214033921,0.18045515,110720.0,110710.0,0.2651]
[1757214034127,0.49774301,110720.0,110710.0,0.00298]
[1757214038927,0.18065215,110710.0,110700.0,0.26825]
[1757214039131,0.49794001,110710.0,110700.0,0.41857]
[1757214040314,0.49794001,110710.0,110700.0,0.59923847]
[1757214040547,0.18065215,110710.0,110700.0,0.59923847]
[1757214040755,0.49794001,110710.0,110700.0,0.60123847]
[1757214041275,0.49794001,110710.0,110700.0,0.60119847]
[1757214044445,0.49794001,110710.0,110700.0,0.41853]
[1757214045343,0.18065215,110710.0,110700.0,0.41853]
[1757214046132,0.49794001,110710.0,110700.0,0.2651]
[1757214046314,0.18065215,110710.0,110700.0,0.41534]
[1757214046509,0.49794001,110710.0,110700.0,0.41534]
[1757214047145,0.49794001,110710.0,110700.0,0.41849]
[1757214047781,0.18065215,110710.0,110700.0,0.41849]
[1757214047920,0.49794001,110710.0,110700.0,0.41849]
[1757214048390,0.49794001,110710.0,110700.0,0.59915847]
[1757214048711,0.49794001,110710.0,110700.0,0.60115847]
[1757214050082,0.49794001,110710.0,110700.0,0.42049]
[1757214050320,0.49794001,110710.0,110700.0,0.41849]
[1757214050993,0.18065215,110710.0,110700.0,0.41849]
[1757214051354,0.49794001,110710.0,110700.0,0.41849]
[1757214051558,0.49794001,110710.0,110700.0,0.41845]
[1757214052008,0.49794001,110710.0,110700.0,0.15335]
[1757214053598,0.49794001,110710.0,110700.0,0.00315]
[1757214053809,0.64794301,110720.0,110700.0,0.33601847]
[1757214054051,0.33065515,110720.0,110710.0,0.00315]
[1757214054217,0.64794301,110720.0,110710.0,0.00315]
[1757214060288,0.49774301,110720.0,110700.0,0.33086847]
[1757214060497,0.49774301,110720.0,110700.0,0.33401847]
[1757214060704,0.64790301,110720.0,110700.0,0.33401847]
[1757214063108,0.49794001,110710.0,110700.0,0.33401847]
[1757214063313,0.18065215,110710.0,110700.0,0.33401847]
[1757214063532,0.18065215,110710.0,110700.0,0.33601847]
[1757214073599,0.62840217,110720.0,110700.0,0.33601847]
[1757214073737,0.18065215,110710.0,110700.0,0.33601847]
[1757214079995,0.18065215,110710.0,110700.0,0.33597847]
[1757214080139,0.18065215,110710.0,110700.0,0.15016]
[1757214080346,0.18065215,110710.0,110700.0,0.15316]
[1757214082249,0.18065215,110710.0,110700.0,0.1553]
[1757214083448,0.18065215,110710.0,110700.0,0.33596847]
[1757214084968,0.18065215,110710.0,110700.0,0.1553]
[1757214086053,0.18065215,110710.0,110700.0,0.33596847]
[1757214099631,0.18065215,110710.0,110700.0,0.3630898]
[1757214107076,0.65304203,110720.0,110700.0,0.3630898]
[1757214107311,0.18065215,110710.0,110700.0,0.3630898]
[1757214122390,0.18065215,110710.0,110700.0,0.2129298]
[1757214122530,0.18065215,110710.0,110700.0,0.3630498]
[1757214138223,0.49796119,110710.0,110700.0,0.03226133]
[1757214138434,0.49796119,110710.0,110700.0,0.02712133]
[1757214138644,0.49796119,110710.0,110690.0,0.64006869]
[1757214138852,0.5250835,110710.0,110690.0,0.64006869]
[1757214139157,0.5250835,110710.0,110690.0,0.667191]
[1757214140091,0.20777446,110710.0,110690.0,0.667191]
[1757214140292,0.6752035,110710.0,110690.0,0.667191]
[1757214140495,0.6752035,110710.0,110690.0,0.517071]
[1757214140700,0.6752035,110710.0,110690.0,0.667191]
[1757214142377,0.81528655,110700.0,110690.0,0.33638872]
[1757214142517,0.49797751,110700.0,110690.0,0.48782872]
[1757214142725,0.18066847,110700.0,110690.0,0.48782872]
[1757214142939,0.49797751,110700.0,110690.0,0.48980872]
[1757214143140,0.52510178,110700.0,110690.0,0.48980872]
[1757214143595,0.20779274,110700.0,110690.0,0.33845315]
[1757214143798,0.52510178,110700.0,110690.0,0.48993315]
[1757214144003,0.52510178,110700.0,110690.0,0.07335315]
[1757214144155,0.52510178,110700.0,110690.0,0.22483315]
[1757214145675,0.20779274,110700.0,110690.0,0.22483315]
[1757214145910,0.52510178,110700.0,110690.0,0.22483315]
[1757214146327,0.52510178,110700.0,110690.0,0.07335315]
[1757214146646,0.52510178,110700.0,110690.0,0.22479315]
[1757214149914,0.52501145,110700.0,110690.0,0.22479315]
[1757214150127,0.52451145,110700.0,110690.0,0.22479315]
[1757214153712,0.52451145,110700.0,110690.0,0.06821315]
[1757214154770,0.20720241,110700.0,110690.0,0.07137315]
[1757214154970,0.52451145,110700.0,110690.0,0.07137315]
[1757214155366,0.67583145,110700.0,110690.0,0.07137315]
[1757214157490,0.67583145,110700.0,110690.0,0.06821315]
[1757214158383,0.67583145,110700.0,110690.0,0.04109084]
[1757214159083,0.67583145,110700.0,110690.0,8.443e-05]
[1757214159475,0.64870718,110700.0,110690.0,8.443e-05]
[1757214160060,0.6758315,110700.0,110690.0,8.443e-05]
[1757214165719,0.99314054,110700.0,110690.0,8.443e-05]
[1757214165922,0.6758315,110700.0,110690.0,8.443e-05]
[1757214168813,0.35852246,110700.0,110690.0,8.443e-05]
[1757214168990,0.6758315,110700.0,110690.0,8.443e-05]
[1757214169456,0.35852246,110700.0,110690.0,8.443e-05]
[1757214169658,0.6758315,110700.0,110690.0,8.443e-05]
[1757214169834,0.6758315,110700.0,110690.0,0.00316443]
[1757214171113,0.6756715,110700.0,110690.0,0.00316443]
[1757214171548,0.20720246,110700.0,110690.0,0.00316443]
[1757214171689,0.6756315,110700.0,110690.0,0.00316443]
[1757214174765,0.6756315,110700.0,110690.0,8.443e-05]
[1757214176324,0.6756315,110700.0,110690.0,0.00316443]
[1757214176487,0.6756315,110700.0,110690.0,8.443e-05]
[1757214177339,0.6756315,110700.0,110690.0,0.00316443]
[1757214179891,0.6756315,110700.0,110690.0,8.443e-05]
[1757214180921,1.0156315,110700.0,110690.0,8.443e-05]
[1757214181124,1.33294054,110700.0,110690.0,8.443e-05]
[1757214182510,0.69832246,110700.0,110690.0,8.443e-05]
[1757214182933,1.33294054,110700.0,110690.0,8.443e-05]
[1757214183752,1.11834777,110700.0,110690.0,8.443e-05]
[1757214183943,1.29901624,110700.0,110690.0,8.443e-05]
[1757214185601,0.98184938,110700.0,110690.0,8.443e-05]
[1757214186595,1.00897551,110700.0,110690.0,8.443e-05]
[1757214210023,1.00893551,110700.0,110690.0,8.443e-05]
[1757214213079,1.1008515,110700.0,110690.0,8.443e-05]
[1757214213437,1.41830272,110700.0,110690.0,8.443e-05]
[1757214213640,1.1008515,110700.0,110690.0,8.443e-05]
[1757214224256,1.10768181,110700.0,110690.0,8.443e-05]
[1757214228776,1.10764181,110700.0,110690.0,8.443e-05]
[1757214232160,1.10764181,110700.0,110690.0,8.443e-05]
[1757214234611,0.95716181,110700.0,110690.0,8.443e-05]
[1757214234812,1.10756181,110700.0,110690.0,8.443e-05]
[1757214240066,1.10752181,110700.0,110690.0,8.443e-05]
[1757214241009,0.76752181,110700.0,110690.0,8.443e-05]
[1757214242407,0.61716181,110700.0,110690.0,8.443e-05]
[1757214242665,0.76752181,110700.0,110690.0,8.443e-05]
[1757214244695,0.2077946,110700.0,110690.0,0.00223443]
[1757214244899,0.3581546,110700.0,110690.0,0.00548443]
[1757214245105,0.2077946,110700.0,110690.0,0.00548443]
[1757214245362,0.33102847,110700.0,110690.0,0.00548443]
[1757214245761,0.64840443,110700.0,110690.0,0.00548443]
[1757214246669,0.18066847,110700.0,110690.0,0.00548443]
[1757214246816,0.64840443,110700.0,110690.0,0.00548443]
[1757214251516,0.33102847,110700.0,110690.0,0.00548443]
[1757214251717,0.64840443,110700.0,110690.0,0.00548443]
[1757214254987,0.2771385,110710.0,110690.0,0.18616922]
[1757214255248,0.33102847,110700.0,110690.0,0.18291922]
[1757214255433,0.33102847,110700.0,110690.0,0.21004418]
[1757214255784,0.64840443,110700.0,110690.0,0.21307418]
[1757214256437,0.33102847,110700.0,110690.0,0.21307418]
[1757214257361,0.64840443,110700.0,110690.0,0.21307418]
[1757214257561,0.64840443,110700.0,110690.0,0.03238939]
[1757214258340,0.64840443,110700.0,110690.0,0.21307418]
[1757214258775,0.33102847,110700.0,110690.0,0.21307418]
[1757214258972,0.64840443,110700.0,110690.0,0.21307418]
[1757214268601,0.64840443,110700.0,110690.0,0.03238939]
[1757214268834,0.96578039,110700.0,110690.0,0.03023939]
[1757214269441,0.96578039,110700.0,110690.0,0.02720939]
[1757214269644,0.96578039,110700.0,110690.0,8.443e-05]
[1757214270101,0.96359971,110700.0,110690.0,8.443e-05]
[1757214270305,0.96359971,110700.0,110690.0,0.00311443]
[1757214281974,0.96359971,110700.0,110690.0,0.00525443]
[1757214283400,0.96359971,110700.0,110690.0,0.00311443]
[1757214295391,0.75342209,110700.0,110690.0,0.00311443]
[1757214296042,0.75342209,110700.0,110690.0,8.443e-05]
[1757214296252,0.93409056,110700.0,110690.0,8.443e-05]
[1757214296399,0.93409056,110700.0,110690.0,0.00305443]
[1757214297659,0.29933864,110700.0,110690.0,0.00305443]
[1757214297979,0.93409056,110700.0,110690.0,0.00305443]
[1757214299602,0.89661323,110700.0,110690.0,0.00305443]
[1757214302908,0.89661323,110700.0,110690.0,8.443e-05]
[1757214303076,0.26186131,110700.0,110690.0,8.443e-05]
[1757214303242,0.89661323,110700.0,110690.0,8.443e-05]
[1757214307507,0.57933308,110700.0,110690.0,8.443e-05]
[1757214312294,0.57933308,110700.0,110690.0,0.00320443]
[1757214314234,0.57933308,110700.0,110690.0,8.443e-05]
[1757214326058,0.57933308,110700.0,110690.0,0.00320443]
[1757214329526,0.26186131,110700.0,110690.0,0.00320443]
[1757214329857,0.57933308,110700.0,110690.0,0.00320443]
[1757214330266,0.60646009,110700.0,110690.0,0.00320443]
[1757214338468,0.60646009,110700.0,110690.0,8.443e-05]
[1757214342390,0.60646009,110700.0,110690.0,0.00309443]
[1757214343326,0.28898832,110700.0,110690.0,0.00309443]
[1757214343555,0.60646009,110700.0,110690.0,0.00309443]
[1757214343962,0.60646009,110700.0,110690.0,8.443e-05]
[1757214360601,0.28898832,110700.0,110690.0,8.443e-05]
[1757214360806,0.60646009,110700.0,110690.0,8.443e-05]
[1757214365958,1.01584785,110700.0,110690.0,8.443e-05]
[1757214367623,1.01592323,110700.0,110690.0,8.443e-05]
[1757214371605,1.33343269,110700.0,110690.0,8.443e-05]
[1757214371819,1.36171269,110700.0,110690.0,8.443e-05]
[1757214373727,1.36271269,110700.0,110690.0,8.443e-05]
[1757214374245,1.04520323,110700.0,110690.0,8.443e-05]
[1757214374448,0.89488323,110700.0,110690.0,8.443e-05]
[1757214374578,1.04608323,110700.0,110690.0,8.443e-05]
[1757214376627,1.38453151,110700.0,110690.0,8.443e-05]
[1757214376831,1.06702205,110700.0,110690.0,8.443e-05]
[1757214377291,1.38453151,110700.0,110690.0,8.443e-05]
[1757214385293,1.72453151,110700.0,110690.0,8.443e-05]
[1757214385513,1.57433151,110700.0,110690.0,8.443e-05]
[1757214385944,1.72453151,110700.0,110690.0,8.443e-05]
[1757214386151,1.72449151,110700.0,110690.0,8.443e-05]
[1757214386816,1.40698205,110700.0,110690.0,8.443e-05]
[1757214392003,1.25682205,110700.0,110690.0,8.443e-05]
[1757214392205,1.40702205,110700.0,110690.0,8.443e-05]
[1757214393914,1.20185916,110700.0,110690.0,8.443e-05]
[1757214394042,1.40965936,110700.0,110690.0,8.443e-05]
[1757214397311,1.47905936,110700.0,110690.0,8.443e-05]
[1757214402689,1.32885936,110700.0,110690.0,8.443e-05]
[1757214402891,1.47901936,110700.0,110690.0,8.443e-05]
[1757214411342,1.79652882,110700.0,110690.0,8.443e-05]
[1757214412033,1.47901936,110700.0,110690.0,8.443e-05]
[1757214419090,1.79652882,110700.0,110690.0,8.443e-05]
[1757214425658,1.79648882,110700.0,110690.0,8.443e-05]
[1757214429155,1.69956858,110700.0,110690.0,8.443e-05]
[1757214429329,1.47176457,110700.0,110690.0,8.443e-05]
[1757214429563,1.15436465,110700.0,110690.0,8.443e-05]
[1757214431158,1.17530347,110700.0,110690.0,8.443e-05]
[1757214435022,1.51530347,110700.0,110690.0,8.443e-05]
[1757214466210,1.36518347,110700.0,110690.0,8.443e-05]
[1757214466425,1.51526347,110700.0,110690.0,8.443e-05]
[1757214480744,1.51526347,110700.0,110690.0,8.443e-05]
[1757214488007,1.51522347,110700.0,110690.0,8.443e-05]
[1757214491561,1.8327532,110700.0,110690.0,8.443e-05]
[1757214499440,1.60610229,110700.0,110690.0,8.443e-05]
[1757214499665,1.78677076,110700.0,110690.0,8.443e-05]
[1757214499846,1.81390254,110700.0,110690.0,8.443e-05]
[1757214505954,1.49634981,110700.0,110690.0,8.443e-05]
[1757214511435,1.81390254,110700.0,110690.0,8.443e-05]
[1757214541288,1.81390254,110700.0,110680.0,0.00175346]
[1757214541531,1.05766624,110690.0,110680.0,0.0018001]
[1757214541913,1.05766624,110690.0,110680.0,0.0038001]
[1757214542688,1.08479802,110690.0,110680.0,0.0038001]
[1757214546886,0.81219724,110690.0,110680.0,0.0038001]
[1757214547108,0.99288203,110690.0,110680.0,0.0038001]
[1757214549980,0.99288203,110690.0,110680.0,0.0018001]
[1757214551572,0.67535351,110690.0,110680.0,0.0018001]
[1757214577343,0.67535351,110690.0,110680.0,0.0039701]
[1757214581513,0.67527351,110690.0,110680.0,0.0039701]
[1757214585692,0.67527351,110690.0,110680.0,0.0018001]
[1757214599355,0.7671895,110690.0,110680.0,4.664e-05]
[1757214603994,0.6173095,110690.0,110680.0,4.664e-05]
[1757214604178,0.7671495,110690.0,110680.0,0.00314664]
[1757214605014,0.6173095,110690.0,110680.0,0.00314664]
[1757214605215,0.7671495,110690.0,110680.0,0.00314664]
[1757214610565,0.29973256,110690.0,110680.0,0.00531664]
[1757214610774,0.7671495,110690.0,110680.0,0.00531664]
[1757214613534,1.08470944,110690.0,110680.0,0.00531664]
[1757214616523,1.08470944,110690.0,110680.0,0.00314664]
[1757214618743,1.08466944,110690.0,110680.0,0.00314664]
[1757214619857,0.93486944,110690.0,110680.0,0.00531664]
[1757214620003,1.08466944,110690.0,110680.0,0.00531664]
[1757214630747,0.52538501,110690.0,110680.0,0.00531664]
[1757214630986,0.64805323,110690.0,110680.0,0.00531664]
[1757214631217,0.64805323,110690.0,110680.0,0.03244712]
[1757214636255,0.45041467,110690.0,110680.0,0.03244712]
[1757214636458,0.63109946,110690.0,110680.0,0.03244712]
[1757214646834,0.9486679,110690.0,110680.0,0.03244712]
[1757214673142,0.9486679,110690.0,110680.0,0.00531664]
[1757214673966,0.31353102,110690.0,110680.0,0.00531664]
[1757214674291,0.9486679,110690.0,110680.0,0.00531664]
[1757214675795,0.63109158,110690.0,110680.0,0.00531664]
[1757214690041,0.6303146,110690.0,110680.0,0.00531664]
[1757214692666,0.6303146,110690.0,110680.0,4.664e-05]
[1757214697333,0.6303146,110690.0,110680.0,0.00326664]
[1757214697536,0.6303146,110690.0,110680.0,4.664e-05]
[1757214699925,0.72223059,110690.0,110680.0,4.664e-05]
[1757214700419,0.74936318,110690.0,110680.0,4.664e-05]
[1757214702667,0.71236066,110690.0,110680.0,4.664e-05]
[1757214720871,1.05236066,110690.0,110680.0,4.664e-05]
[1757214735500,1.3700473,110690.0,110680.0,4.664e-05]
[1757214736140,1.3700473,110690.0,110680.0,4.664e-05]
[1757214736999,1.2203273,110690.0,110680.0,4.664e-05]
[1757214737221,1.3700073,110690.0,110680.0,4.664e-05]
[1757214750449,1.2203273,110690.0,110680.0,4.664e-05]
[1757214750690,1.3699673,110690.0,110680.0,4.664e-05]
[1757214753013,1.42462057,110690.0,110680.0,4.664e-05]
[1757214767902,1.21170803,110690.0,110680.0,4.664e-05]
[1757214768124,0.99270524,110690.0,110680.0,4.664e-05]
[1757214793236,1.42318365,110690.0,110680.0,4.664e-05]
[1757214793649,1.10556005,110690.0,110680.0,4.664e-05]
[1757214793875,1.42318365,110690.0,110680.0,4.664e-05]